[Event "Late-Titled-Tuesday-Blitz-September-26-2023"]
[Site "Chess.com"]
[Date "2023.09.26"]
[Round "10"]
[White "JoseRemolar"]
[Black "Orest_Vovk"]
[Result "0-1"]
[WhiteElo "2422"]
[BlackElo "2584"]
[TimeControl "180+1"]
[EndTime "15:50:42 PDT"]
[Termination "Orest_Vovk won on time"]

1. e4 {[%clk 0:03:00.9]} 1... g5 {[%clk 0:02:54.2]} 2. Nc3 {[%clk 0:02:57.4]}
2... Bg7 {[%clk 0:02:53.1]} 3. Nge2 {[%clk 0:02:56.9]} 3... c5 {[%clk
0:02:50.4]} 4. Ng3 {[%clk 0:02:56.5]} 4... d6 {[%clk 0:02:47.6]} 5. Nh5 {[%clk
0:02:50.4]} 5... Be5 {[%clk 0:02:47.1]} 6. d3 {[%clk 0:02:50]} 6... h6 {[%clk
0:02:44.8]} 7. Be2 {[%clk 0:02:43.9]} 7... Nf6 {[%clk 0:02:42]} 8. Be3 {[%clk
0:02:32.4]} 8... Nxh5 {[%clk 0:02:40.6]} 9. Bxh5 {[%clk 0:02:32.2]} 9... Nc6
{[%clk 0:02:38.4]} 10. Qd2 {[%clk 0:02:30.6]} 10... Be6 {[%clk 0:02:37.6]} 11.
h4 {[%clk 0:02:22.1]} 11... Qb6 {[%clk 0:02:17.5]} 12. O-O-O {[%clk 0:02:04.4]}
12... Nb4 {[%clk 0:02:14.3]} 13. d4 {[%clk 0:01:41.3]} 13... Bg7 {[%clk
0:01:42.6]} 14. a3 {[%clk 0:01:32.3]} 14... cxd4 {[%clk 0:01:03.8]} 15. Bxd4
{[%clk 0:01:30.3]} 15... Qxd4 {[%clk 0:01:00.3]} 16. Qxd4 {[%clk 0:01:31.2]}
16... Bxd4 {[%clk 0:01:00]} 17. Rxd4 {[%clk 0:01:32.1]} 17... Nc6 {[%clk
0:01:00.1]} 18. Rd2 {[%clk 0:01:24]} 18... g4 {[%clk 0:00:59.5]} 19. f4 {[%clk
0:01:11]} 19... gxf3 {[%clk 0:00:57.2]} 20. gxf3 {[%clk 0:01:08.7]} 20... Rg8
{[%clk 0:00:50.5]} 21. f4 {[%clk 0:01:02.1]} 21... Kf8 {[%clk 0:00:35.4]} 22. f5
{[%clk 0:00:43.5]} 22... Bc4 {[%clk 0:00:34.9]} 23. b3 {[%clk 0:00:40.4]} 23...
Ba6 {[%clk 0:00:33.9]} 24. Nd5 {[%clk 0:00:36.7]} 24... Rc8 {[%clk 0:00:28.7]}
25. Rh3 {[%clk 0:00:20.7]} 25... Rg1+ {[%clk 0:00:27.3]} 26. Kb2 {[%clk
0:00:21.2]} 26... Ne5 {[%clk 0:00:25.5]} 27. c4 {[%clk 0:00:17.9]} 27... b5
{[%clk 0:00:22.2]} 28. Nb4 {[%clk 0:00:17.8]} 28... Bb7 {[%clk 0:00:14]} 29.
cxb5 {[%clk 0:00:13.9]} 29... Bxe4 {[%clk 0:00:13.9]} 30. Bd1 {[%clk 0:00:03.3]}
30... Bxf5 {[%clk 0:00:09.2]} 31. Rc3 {[%clk 0:00:03.3]} 31... Rb8 {[%clk
0:00:07.2]} 32. a4 {[%clk 0:00:03.3]} 32... Be6 {[%clk 0:00:06.2]} 33. Na6
{[%clk 0:00:02.6]} 33... Rd8 {[%clk 0:00:05.2]} 34. a5 {[%clk 0:00:02]} 34...
Bf5 {[%clk 0:00:03.7]} 0-1

[Event "Late-Titled-Tuesday-Blitz-September-26-2023"]
[Site "Chess.com"]
[Date "2023.09.26"]
[Round "10"]
[White "dedpihto_v_kozhanom_palto"]
[Black "GianmarcoVaR"]
[Result "0-1"]
[WhiteElo "2690"]
[BlackElo "2634"]
[TimeControl "180+1"]
[EndTime "15:50:50 PDT"]
[Termination "GianmarcoVaR won on time"]

1. c4 {[%clk 0:03:00.9]} 1... a6 {[%clk 0:02:59.2]} 2. Nc3 {[%clk 0:03:00.9]}
2... b5 {[%clk 0:02:56.2]} 3. d4 {[%clk 0:02:59.7]} 3... Nf6 {[%clk 0:02:46.6]}
4. e4 {[%clk 0:02:51.5]} 4... b4 {[%clk 0:02:45.8]} 5. Nd5 {[%clk 0:02:49.6]}
5... Nxe4 {[%clk 0:02:22.8]} 6. Qf3 {[%clk 0:02:48.3]} 6... c6 {[%clk
0:02:23.4]} 7. Qxe4 {[%clk 0:02:24.6]} 7... cxd5 {[%clk 0:02:23.5]} 8. cxd5
{[%clk 0:02:25.5]} 8... Bb7 {[%clk 0:02:22]} 9. Nf3 {[%clk 0:02:13.9]} 9... e6
{[%clk 0:02:15]} 10. Bc4 {[%clk 0:02:14.3]} 10... Be7 {[%clk 0:02:11.6]} 11. O-O
{[%clk 0:01:59.7]} 11... O-O {[%clk 0:02:09.6]} 12. Bf4 {[%clk 0:01:57.2]} 12...
a5 {[%clk 0:02:06.5]} 13. Rac1 {[%clk 0:01:56.5]} 13... Re8 {[%clk 0:02:05.9]}
14. Qb1 {[%clk 0:01:48.3]} 14... Bf6 {[%clk 0:02:00.4]} 15. Rfe1 {[%clk
0:01:31.8]} 15... Bxd5 {[%clk 0:01:44.1]} 16. Bc7 {[%clk 0:01:03.3]} 16... Qxc7
{[%clk 0:01:27.9]} 17. Bxd5 {[%clk 0:00:59.9]} 17... Nc6 {[%clk 0:01:28.6]} 18.
Be4 {[%clk 0:00:55.8]} 18... h6 {[%clk 0:01:21.8]} 19. d5 {[%clk 0:00:53.8]}
19... exd5 {[%clk 0:01:22.2]} 20. Bxd5 {[%clk 0:00:54.7]} 20... Rxe1+ {[%clk
0:01:10.3]} 21. Rxe1 {[%clk 0:00:55.6]} 21... Rc8 {[%clk 0:01:00.9]} 22. Qg6
{[%clk 0:00:53.9]} 22... d6 {[%clk 0:00:48.7]} 23. Rc1 {[%clk 0:00:49.4]} 23...
Qd7 {[%clk 0:00:39.7]} 24. Qh5 {[%clk 0:00:31.8]} 24... Nd8 {[%clk 0:00:32.5]}
25. Re1 {[%clk 0:00:24.3]} 25... Rc5 {[%clk 0:00:26.1]} 26. Rd1 {[%clk
0:00:23.1]} 26... Ne6 {[%clk 0:00:23.8]} 27. g3 {[%clk 0:00:20.5]} 27... Nc7
{[%clk 0:00:18.3]} 28. h4 {[%clk 0:00:12.3]} 28... Nxd5 {[%clk 0:00:12.2]} 29.
Rxd5 {[%clk 0:00:13.2]} 29... Qc6 {[%clk 0:00:07.5]} 30. Rxc5 {[%clk 0:00:07.1]}
30... dxc5 {[%clk 0:00:08.4]} 31. b3 {[%clk 0:00:06.2]} 31... a4 {[%clk
0:00:08.2]} 32. Qg4 {[%clk 0:00:05.9]} 32... c4 {[%clk 0:00:06.5]} 33. bxc4
{[%clk 0:00:04.2]} 33... b3 {[%clk 0:00:06.8]} 34. axb3 {[%clk 0:00:05.1]} 34...
axb3 {[%clk 0:00:07.4]} 35. Nd2 {[%clk 0:00:05.3]} 35... b2 {[%clk 0:00:07.8]}
36. Qf4 {[%clk 0:00:03.3]} 36... Qb7 {[%clk 0:00:04.5]} 37. Nb1 {[%clk
0:00:02.9]} 37... Qb3 {[%clk 0:00:04.8]} 38. Qe4 {[%clk 0:00:02.5]} 38... Qd1+
{[%clk 0:00:04.1]} 39. Kg2 {[%clk 0:00:02.4]} 39... Qc1 {[%clk 0:00:03.4]} 0-1

[Event "Late-Titled-Tuesday-Blitz-September-26-2023"]
[Site "Chess.com"]
[Date "2023.09.26"]
[Round "10"]
[White "egnfanclub"]
[Black "Fan_Of_Chucky"]
[Result "0-1"]
[WhiteElo "2404"]
[BlackElo "2517"]
[TimeControl "180+1"]
[EndTime "15:50:51 PDT"]
[Termination "Fan_Of_Chucky won on time"]

1. e4 {[%clk 0:03:00.9]} 1... c5 {[%clk 0:02:53.2]} 2. Nc3 {[%clk 0:03:00]} 2...
d6 {[%clk 0:02:49.7]} 3. f4 {[%clk 0:03:00.6]} 3... g6 {[%clk 0:02:48.6]} 4. Nf3
{[%clk 0:03:01.3]} 4... Bg7 {[%clk 0:02:48.4]} 5. Bb5+ {[%clk 0:03:01.9]} 5...
Nc6 {[%clk 0:02:41.7]} 6. O-O {[%clk 0:03:00.8]} 6... Bd7 {[%clk 0:02:39.2]} 7.
d3 {[%clk 0:03:00.3]} 7... e6 {[%clk 0:02:37]} 8. Qe1 {[%clk 0:03:00.4]} 8...
Nge7 {[%clk 0:02:37.4]} 9. Bxc6 {[%clk 0:02:20.1]} 9... Bxc6 {[%clk 0:02:38.3]}
10. a4 {[%clk 0:02:18.5]} 10... O-O {[%clk 0:02:29.6]} 11. Qh4 {[%clk
0:02:17.6]} 11... d5 {[%clk 0:02:19.1]} 12. Ne5 {[%clk 0:02:10.6]} 12... Qc7
{[%clk 0:02:04.8]} 13. Nb5 {[%clk 0:01:53]} 13... Bxb5 {[%clk 0:02:01.6]} 14.
axb5 {[%clk 0:01:53.9]} 14... dxe4 {[%clk 0:01:50.5]} 15. dxe4 {[%clk
0:01:53.6]} 15... f6 {[%clk 0:01:51.4]} 16. Nf3 {[%clk 0:01:47.5]} 16... a6
{[%clk 0:01:37.6]} 17. bxa6 {[%clk 0:01:39.7]} 17... Rxa6 {[%clk 0:01:38.5]} 18.
Rxa6 {[%clk 0:01:39.4]} 18... bxa6 {[%clk 0:01:39.4]} 19. Be3 {[%clk 0:01:38.9]}
19... Qc6 {[%clk 0:01:31.3]} 20. Qf2 {[%clk 0:01:24.5]} 20... Qxe4 {[%clk
0:01:28.5]} 21. Bxc5 {[%clk 0:01:24.5]} 21... Re8 {[%clk 0:01:27.7]} 22. Re1
{[%clk 0:01:00.3]} 22... Qd5 {[%clk 0:01:28]} 23. b3 {[%clk 0:00:55.5]} 23...
Nf5 {[%clk 0:01:23.9]} 24. c4 {[%clk 0:00:52.7]} 24... Qd3 {[%clk 0:01:13.7]}
25. Qa2 {[%clk 0:00:33.4]} 25... Bh6 {[%clk 0:00:53.4]} 26. Qxa6 {[%clk
0:00:23]} 26... Bxf4 {[%clk 0:00:49.2]} 27. Rxe6 {[%clk 0:00:19.9]} 27... Qd1+
{[%clk 0:00:44.1]} 28. Kf2 {[%clk 0:00:19.4]} 28... Qc2+ {[%clk 0:00:44.7]} 29.
Kg1 {[%clk 0:00:18.2]} 29... Qd1+ {[%clk 0:00:32.8]} 30. Kf2 {[%clk 0:00:18.4]}
30... Rd8 {[%clk 0:00:29.4]} 31. Re2 {[%clk 0:00:10.4]} 31... Qxb3 {[%clk
0:00:27.6]} 32. Qe6+ {[%clk 0:00:09.8]} 32... Kg7 {[%clk 0:00:23.2]} 33. Be7
{[%clk 0:00:09.9]} 33... Rd6 {[%clk 0:00:21.3]} 34. Bxf6+ {[%clk 0:00:08.1]}
34... Kh6 {[%clk 0:00:18.1]} 35. Qe4 {[%clk 0:00:04.5]} 35... Rxf6 {[%clk
0:00:11.2]} 36. Qxf4+ {[%clk 0:00:04.3]} 36... Kg7 {[%clk 0:00:12.1]} 37. Qc7+
{[%clk 0:00:03.7]} 37... Kg8 {[%clk 0:00:08.4]} 38. Qd8+ {[%clk 0:00:03.2]}
38... Rf8 {[%clk 0:00:08.3]} 39. Qd5+ {[%clk 0:00:02.3]} 39... Kg7 {[%clk
0:00:05.6]} 0-1

[Event "Late-Titled-Tuesday-Blitz-September-26-2023"]
[Site "Chess.com"]
[Date "2023.09.26"]
[Round "10"]
[White "Hrant_ChessMood"]
[Black "DonkyDonkyDonkey"]
[Result "1-0"]
[WhiteElo "2915"]
[BlackElo "2749"]
[TimeControl "180+1"]
[EndTime "15:50:53 PDT"]
[Termination "Hrant_ChessMood won by resignation"]

1. d4 {[%clk 0:02:50.7]} 1... Nf6 {[%clk 0:03:00]} 2. c4 {[%clk 0:02:50.5]} 2...
e6 {[%clk 0:03:00.6]} 3. Bf4 {[%clk 0:02:50.5]} 3... d5 {[%clk 0:02:57.6]} 4. e3
{[%clk 0:02:46.9]} 4... Bd6 {[%clk 0:02:56.9]} 5. Nh3 {[%clk 0:02:45.7]} 5...
O-O {[%clk 0:02:56]} 6. Nc3 {[%clk 0:02:43.8]} 6... Re8 {[%clk 0:02:55.7]} 7.
Rc1 {[%clk 0:02:39.8]} 7... c6 {[%clk 0:02:52.5]} 8. Be2 {[%clk 0:02:39.4]} 8...
e5 {[%clk 0:02:33.9]} 9. dxe5 {[%clk 0:02:37.8]} 9... Bxe5 {[%clk 0:02:34.8]}
10. Bxe5 {[%clk 0:02:37]} 10... Rxe5 {[%clk 0:02:35.7]} 11. Nf4 {[%clk 0:02:37]}
11... Bf5 {[%clk 0:02:11.3]} 12. O-O {[%clk 0:02:31.4]} 12... Nbd7 {[%clk
0:01:53.6]} 13. cxd5 {[%clk 0:02:30.2]} 13... cxd5 {[%clk 0:01:54.5]} 14. Ncxd5
{[%clk 0:02:27.1]} 14... Nxd5 {[%clk 0:01:50.9]} 15. Nxd5 {[%clk 0:02:28]} 15...
Nb6 {[%clk 0:01:44]} 16. Nc7 {[%clk 0:02:20.8]} 16... Rc8 {[%clk 0:01:33.9]} 17.
Qxd8+ {[%clk 0:02:17.1]} 17... Rxd8 {[%clk 0:01:34.8]} 18. Rfd1 {[%clk
0:02:17.1]} 18... Rxd1+ {[%clk 0:01:34.4]} 19. Rxd1 {[%clk 0:02:18]} 19... h6
{[%clk 0:01:34.7]} 20. Nb5 {[%clk 0:02:14.5]} 20... Rc5 {[%clk 0:01:27.6]} 21.
Nd4 {[%clk 0:02:10.3]} 21... Be4 {[%clk 0:01:27.2]} 22. b3 {[%clk 0:02:09.4]}
22... Nd5 {[%clk 0:01:25.4]} 23. Kf1 {[%clk 0:02:04.3]} 23... b6 {[%clk
0:01:19.8]} 24. Bc4 {[%clk 0:01:56.3]} 24... Nc3 {[%clk 0:01:13.8]} 25. Rd2
{[%clk 0:01:54.1]} 25... Nb1 {[%clk 0:01:00.1]} 26. Rd1 {[%clk 0:01:49.6]} 26...
Nc3 {[%clk 0:00:59.4]} 27. Ra1 {[%clk 0:01:47.5]} 27... b5 {[%clk 0:00:55.6]}
28. Be2 {[%clk 0:01:46.6]} 28... a5 {[%clk 0:00:53.2]} 29. f3 {[%clk 0:01:46.2]}
29... Bb7 {[%clk 0:00:51.6]} 30. a3 {[%clk 0:01:45]} 30... Bd5 {[%clk
0:00:35.6]} 31. e4 {[%clk 0:01:39.8]} 31... Be6 {[%clk 0:00:34.8]} 32. b4 {[%clk
0:01:36.6]} 32... axb4 {[%clk 0:00:28.6]} 33. axb4 {[%clk 0:01:37.5]} 33... Nxe2
{[%clk 0:00:18.9]} 34. Kxe2 {[%clk 0:01:33]} 34... Rc4 {[%clk 0:00:18.7]} 35.
Ra8+ {[%clk 0:01:20.9]} 35... Kh7 {[%clk 0:00:18.9]} 36. Nxe6 {[%clk 0:01:20.5]}
36... fxe6 {[%clk 0:00:19.8]} 37. Re8 {[%clk 0:01:20.8]} 37... Rxb4 {[%clk
0:00:17.3]} 38. Rxe6 {[%clk 0:01:21]} 38... Rb2+ {[%clk 0:00:17.8]} 39. Kf1
{[%clk 0:01:21.7]} 39... b4 {[%clk 0:00:18.7]} 40. Rb6 {[%clk 0:01:21.9]} 40...
b3 {[%clk 0:00:19.1]} 41. h4 {[%clk 0:01:22.2]} 41... h5 {[%clk 0:00:18.3]} 42.
Kg1 {[%clk 0:01:21.9]} 42... Kg8 {[%clk 0:00:17.7]} 43. Kh2 {[%clk 0:01:22.5]}
43... Rb1 {[%clk 0:00:17.8]} 44. Kg3 {[%clk 0:01:23]} 44... b2 {[%clk
0:00:18.2]} 45. Kf4 {[%clk 0:01:22.1]} 45... Kf7 {[%clk 0:00:17.7]} 46. Kg5
{[%clk 0:01:22]} 46... g6 {[%clk 0:00:18.2]} 47. Rb5 {[%clk 0:01:18.6]} 47...
Kg7 {[%clk 0:00:10]} 48. Rb7+ {[%clk 0:01:18.1]} 48... Kf8 {[%clk 0:00:10.5]}
49. Kxg6 {[%clk 0:01:18.8]} 49... Ke8 {[%clk 0:00:11.2]} 50. Kxh5 {[%clk
0:01:18.6]} 50... Kd8 {[%clk 0:00:11.7]} 51. g4 {[%clk 0:01:18.4]} 51... Kc8
{[%clk 0:00:12.1]} 52. Rb3 {[%clk 0:01:18.2]} 52... Kd7 {[%clk 0:00:13]} 53. g5
{[%clk 0:01:18.7]} 53... Ke6 {[%clk 0:00:13.9]} 54. g6 {[%clk 0:01:18.6]} 54...
Ke5 {[%clk 0:00:14.6]} 55. g7 {[%clk 0:01:18.1]} 55... Rg1 {[%clk 0:00:15.3]}
56. Rxb2 {[%clk 0:01:17.3]} 56... Rxg7 {[%clk 0:00:14.3]} 57. Rb5+ {[%clk
0:01:17.6]} 57... Kd4 {[%clk 0:00:13.6]} 58. Rf5 {[%clk 0:01:16.9]} 58... Rg8
{[%clk 0:00:13.2]} 59. Kh6 {[%clk 0:01:16.9]} 59... Ke3 {[%clk 0:00:13.3]} 60.
h5 {[%clk 0:01:17.3]} 60... Rg3 {[%clk 0:00:12.6]} 61. Kh7 {[%clk 0:01:16.8]}
61... Kd4 {[%clk 0:00:13.4]} 62. h6 {[%clk 0:01:17.3]} 62... Rg1 {[%clk
0:00:13.7]} 63. Kh8 {[%clk 0:01:16.8]} 63... Rg3 {[%clk 0:00:14.4]} 64. h7
{[%clk 0:01:17.5]} 64... Rg1 {[%clk 0:00:13.4]} 65. Rf7 {[%clk 0:01:17.3]} 65...
Ke5 {[%clk 0:00:11.5]} 66. Rg7 {[%clk 0:01:16.9]} 66... Ra1 {[%clk 0:00:09.3]}
67. Kg8 {[%clk 0:01:16.6]} 67... Ra8+ {[%clk 0:00:09.4]} 68. Kf7 {[%clk
0:01:16.9]} 68... Ra7+ {[%clk 0:00:08.9]} 69. Kg6 {[%clk 0:01:17.3]} 69... Ra6+
{[%clk 0:00:09.5]} 70. Kg5 {[%clk 0:01:17.4]} 70... Ra1 {[%clk 0:00:09.8]} 71.
f4+ {[%clk 0:01:12.7]} 71... Kxe4 {[%clk 0:00:08.6]} 72. h8=Q {[%clk 0:01:12.9]}
72... Rg1+ {[%clk 0:00:07.5]} 73. Kf6 {[%clk 0:01:13.1]} 1-0

[Event "Late-Titled-Tuesday-Blitz-September-26-2023"]
[Site "Chess.com"]
[Date "2023.09.26"]
[Round "10"]
[White "SlipperySpeedster"]
[Black "cassoulet"]
[Result "1-0"]
[WhiteElo "2654"]
[BlackElo "2742"]
[TimeControl "180+1"]
[EndTime "15:50:55 PDT"]
[Termination "SlipperySpeedster won by checkmate"]

1. Nf3 {[%clk 0:03:00.9]} 1... Nf6 {[%clk 0:02:59.7]} 2. b3 {[%clk 0:02:59.5]}
2... g6 {[%clk 0:02:59.9]} 3. Bb2 {[%clk 0:02:59.1]} 3... Bg7 {[%clk 0:03:00.6]}
4. e3 {[%clk 0:02:57.7]} 4... O-O {[%clk 0:03:01]} 5. Be2 {[%clk 0:02:57.8]}
5... d6 {[%clk 0:03:01.6]} 6. O-O {[%clk 0:02:55.9]} 6... e5 {[%clk 0:03:01.9]}
7. d4 {[%clk 0:02:55.9]} 7... e4 {[%clk 0:03:02.1]} 8. Nfd2 {[%clk 0:02:55.9]}
8... b6 {[%clk 0:03:01.6]} 9. c4 {[%clk 0:02:56]} 9... Bb7 {[%clk 0:03:01.9]}
10. d5 {[%clk 0:02:55.7]} 10... Re8 {[%clk 0:03:02.2]} 11. Qc2 {[%clk
0:02:52.2]} 11... Nbd7 {[%clk 0:03:02.1]} 12. Nc3 {[%clk 0:02:51.6]} 12... Qe7
{[%clk 0:02:59.7]} 13. a3 {[%clk 0:02:46.6]} 13... a6 {[%clk 0:02:58.7]} 14. b4
{[%clk 0:02:46.7]} 14... h5 {[%clk 0:02:58.5]} 15. Rae1 {[%clk 0:02:44.6]} 15...
b5 {[%clk 0:02:56.8]} 16. cxb5 {[%clk 0:02:38.4]} 16... axb5 {[%clk 0:02:54]}
17. Bxb5 {[%clk 0:02:35.8]} 17... Rac8 {[%clk 0:02:12.8]} 18. Ncxe4 {[%clk
0:02:07.1]} 18... Nxe4 {[%clk 0:01:59.4]} 19. Nxe4 {[%clk 0:02:05.7]} 19... c6
{[%clk 0:01:31.5]} 20. dxc6 {[%clk 0:01:40.4]} 20... Bxb2 {[%clk 0:01:26.8]} 21.
cxd7 {[%clk 0:01:22.6]} 21... Be5 {[%clk 0:00:57]} 22. dxe8=Q+ {[%clk
0:01:18.8]} 22... Rxe8 {[%clk 0:00:46.6]} 23. f4 {[%clk 0:01:01.5]} 23... Bg7
{[%clk 0:00:36.7]} 24. Bxe8 {[%clk 0:00:50.6]} 24... Bxe4 {[%clk 0:00:36.4]} 25.
Qc8 {[%clk 0:00:40.5]} 25... Kh7 {[%clk 0:00:36.6]} 26. f5 {[%clk 0:00:36.2]}
26... Qg5 {[%clk 0:00:30.7]} 27. fxg6+ {[%clk 0:00:31.1]} 27... fxg6 {[%clk
0:00:29.2]} 28. Rf2 {[%clk 0:00:29.4]} 28... h4 {[%clk 0:00:29.3]} 29. Bc6
{[%clk 0:00:26.8]} 29... Bf5 {[%clk 0:00:28.1]} 30. Rxf5 {[%clk 0:00:25.9]}
30... gxf5 {[%clk 0:00:29]} 31. Rf1 {[%clk 0:00:25.2]} 31... Qxe3+ {[%clk
0:00:28.2]} 32. Kh1 {[%clk 0:00:25.5]} 32... Be5 {[%clk 0:00:27.9]} 33. Qxf5+
{[%clk 0:00:25.4]} 33... Kh6 {[%clk 0:00:27.5]} 34. Qf8+ {[%clk 0:00:24.6]}
34... Kg5 {[%clk 0:00:26.3]} 35. Qg8+ {[%clk 0:00:23.6]} 35... Kh6 {[%clk
0:00:26.4]} 36. Be8 {[%clk 0:00:22.4]} 36... Qd3 {[%clk 0:00:24.7]} 37. Qf8+
{[%clk 0:00:20]} 37... Bg7 {[%clk 0:00:24.3]} 38. Rf6+ {[%clk 0:00:18.3]} 38...
Kh7 {[%clk 0:00:19.9]} 39. Qf7 {[%clk 0:00:11.5]} 39... Kh8 {[%clk 0:00:14.2]}
40. Rf1 {[%clk 0:00:08.6]} 40... h3 {[%clk 0:00:14.3]} 41. Qf3 {[%clk
0:00:07.5]} 41... hxg2+ {[%clk 0:00:13.9]} 42. Kxg2 {[%clk 0:00:08.1]} 42...
Qc2+ {[%clk 0:00:13.9]} 43. Kh1 {[%clk 0:00:08.2]} 43... Be5 {[%clk 0:00:11.1]}
44. Qh5+ {[%clk 0:00:07]} 44... Kg8 {[%clk 0:00:10.6]} 45. Rg1+ {[%clk
0:00:07.4]} 45... Kf8 {[%clk 0:00:10.7]} 46. Qf7# {[%clk 0:00:07.7]} 1-0

[Event "Late-Titled-Tuesday-Blitz-September-26-2023"]
[Site "Chess.com"]
[Date "2023.09.26"]
[Round "10"]
[White "Jospem"]
[Black "dropstoneDP"]
[Result "0-1"]
[WhiteElo "3011"]
[BlackElo "3134"]
[TimeControl "180+1"]
[EndTime "15:50:56 PDT"]
[Termination "dropstoneDP won by resignation"]

1. e4 {[%clk 0:03:00.9]} 1... e5 {[%clk 0:02:59.4]} 2. Nf3 {[%clk 0:03:01.5]}
2... Nf6 {[%clk 0:02:59.7]} 3. Nc3 {[%clk 0:03:02.1]} 3... Nc6 {[%clk
0:02:59.7]} 4. h3 {[%clk 0:03:02.7]} 4... d5 {[%clk 0:02:59.6]} 5. exd5 {[%clk
0:03:03.1]} 5... Nxd5 {[%clk 0:03:00.5]} 6. Bb5 {[%clk 0:03:03.4]} 6... Nxc3
{[%clk 0:03:01.1]} 7. bxc3 {[%clk 0:03:04.3]} 7... Bd6 {[%clk 0:03:01.7]} 8. O-O
{[%clk 0:03:04.6]} 8... O-O {[%clk 0:03:02.3]} 9. d4 {[%clk 0:03:05.1]} 9... Bd7
{[%clk 0:03:01.6]} 10. Rb1 {[%clk 0:03:04.9]} 10... Re8 {[%clk 0:02:53.1]} 11.
Re1 {[%clk 0:02:58.8]} 11... exd4 {[%clk 0:02:36.2]} 12. Rxe8+ {[%clk
0:02:53.9]} 12... Qxe8 {[%clk 0:02:36]} 13. cxd4 {[%clk 0:02:54.7]} 13... a6
{[%clk 0:02:26.4]} 14. Bc4 {[%clk 0:02:31.2]} 14... b5 {[%clk 0:02:25.1]} 15.
Bd5 {[%clk 0:02:31.4]} 15... Be6 {[%clk 0:02:11]} 16. Bxe6 {[%clk 0:02:15.4]}
16... Qxe6 {[%clk 0:02:09]} 17. d5 {[%clk 0:01:59.8]} 17... Qd7 {[%clk
0:02:08.9]} 18. Bb2 {[%clk 0:02:00.2]} 18... Ne7 {[%clk 0:02:08.7]} 19. Qd4
{[%clk 0:01:44.3]} 19... f6 {[%clk 0:02:08.4]} 20. Rd1 {[%clk 0:01:44.5]} 20...
Re8 {[%clk 0:02:05.7]} 21. c4 {[%clk 0:01:43.6]} 21... bxc4 {[%clk 0:02:02.6]}
22. Qxc4 {[%clk 0:01:42.7]} 22... Qb5 {[%clk 0:02:03]} 23. Qc2 {[%clk 0:01:19]}
23... Nxd5 {[%clk 0:01:57.5]} 24. Nd4 {[%clk 0:01:19.1]} 24... Qb4 {[%clk
0:01:44.9]} 25. Nf3 {[%clk 0:01:00.3]} 25... Nf4 {[%clk 0:01:42.6]} 26. Bd4
{[%clk 0:00:45.5]} 26... Ne2+ {[%clk 0:01:40.5]} 27. Kf1 {[%clk 0:00:45.8]}
27... Qb5 {[%clk 0:01:34.8]} 28. Qd3 {[%clk 0:00:45.2]} 28... Nf4 {[%clk
0:01:09.8]} 29. Qxb5 {[%clk 0:00:42.9]} 29... axb5 {[%clk 0:01:10.7]} 30. Rb1
{[%clk 0:00:39.4]} 30... b4 {[%clk 0:01:10.2]} 31. Rc1 {[%clk 0:00:33]} 31...
Ra8 {[%clk 0:01:02.4]} 32. Rc2 {[%clk 0:00:33.4]} 32... Kf7 {[%clk 0:01:01.4]}
33. h4 {[%clk 0:00:33.2]} 33... Ke7 {[%clk 0:00:59.6]} 34. g3 {[%clk 0:00:33.5]}
34... Ne6 {[%clk 0:00:59.9]} 35. Be3 {[%clk 0:00:31.6]} 35... c5 {[%clk
0:00:57.5]} 36. Nd2 {[%clk 0:00:31.9]} 36... Kd7 {[%clk 0:00:57.4]} 37. Nc4
{[%clk 0:00:30.2]} 37... Bc7 {[%clk 0:00:57.6]} 38. Nd2 {[%clk 0:00:28.8]} 38...
Kc6 {[%clk 0:00:56.7]} 39. Ke2 {[%clk 0:00:27]} 39... Kb5 {[%clk 0:00:55.2]} 40.
Nc4 {[%clk 0:00:25.5]} 40... Be5 {[%clk 0:00:47.8]} 41. Kd3 {[%clk 0:00:17.1]}
41... Rd8+ {[%clk 0:00:45.7]} 42. Ke4 {[%clk 0:00:11.9]} 42... Bc3 {[%clk
0:00:45.2]} 43. Nb2 {[%clk 0:00:11.7]} 43... Bxb2 {[%clk 0:00:42]} 44. Rxb2
{[%clk 0:00:12.6]} 44... c4 {[%clk 0:00:40.2]} 45. Bd2 {[%clk 0:00:13.1]} 45...
Nc5+ {[%clk 0:00:38.4]} 46. Kf5 {[%clk 0:00:05.1]} 46... g6+ {[%clk 0:00:34.3]}
47. Kg4 {[%clk 0:00:05.5]} 47... Nd3 {[%clk 0:00:29.1]} 48. Rc2 {[%clk
0:00:02.6]} 48... c3 {[%clk 0:00:24.1]} 49. Bxc3 {[%clk 0:00:01.9]} 49... Rc8
{[%clk 0:00:24.7]} 50. Bxf6 {[%clk 0:00:01.3]} 0-1